[Event "Titled Tuesday Blitz February 14 Late 2023"]
[White "Jesusesmifuerza"]
[Black "Kujawski, Adam"]
[BlackFideId "1100920"]
[WhiteElo "2001"]
[BlackElo "2173"]
[Result "0-1"]
[Round "07"]
[TimeControl "180+2"]
[Date "2023.02.14"]
[WhiteClock "0:00:11"]
[BlackClock "0:00:42"]

1. d4 {[%clk 0:03:00]}  Nf6 {[%clk 0:02:59]} 2. Nc3 {[%clk 0:03:01]}  d5 {[%clk 0:02:57]} 3. Bf4 {[%clk 0:03:01]}  a6 {[%clk 0:02:56]} 4. e3 {[%clk 0:02:59]}  h5 {[%clk 0:02:51]} 5. h3 {[%clk 0:02:43]}  b5 {[%clk 0:02:50]} 6. Nf3 {[%clk 0:02:40]}  Bb7 {[%clk 0:02:49]} 7. Bd3 {[%clk 0:02:38]}  Nbd7 {[%clk 0:02:48]} 8. Ne5 {[%clk 0:02:38]}  e6 {[%clk 0:02:48]} 9. O-O {[%clk 0:02:36]}  c5 {[%clk 0:02:47]} 10. dxc5 {[%clk 0:02:24]}  Nxc5 {[%clk 0:02:45]} 11. a3 {[%clk 0:02:20]}  Bd6 {[%clk 0:02:44]} 12. b4 {[%clk 0:02:00]}  Nxd3 {[%clk 0:02:43]} 13. cxd3 {[%clk 0:01:57]}  Rc8 {[%clk 0:02:41]} 14. Rc1 {[%clk 0:01:56]}  Qe7 {[%clk 0:02:38]} 15. d4 {[%clk 0:01:56]}  Ne4 {[%clk 0:02:18]} 16. Nxe4 {[%clk 0:01:55]}  dxe4 {[%clk 0:02:18]} 17. Rxc8+ {[%clk 0:01:51]}  Bxc8 {[%clk 0:02:19]} 18. Qc2 {[%clk 0:01:45]}  Bb7 {[%clk 0:02:18]} 19. f3 {[%clk 0:01:10]}  exf3 {[%clk 0:02:11]} 20. Nxf3 {[%clk 0:01:07]}  Bxf4 {[%clk 0:02:09]} 21. exf4 {[%clk 0:01:08]}  O-O {[%clk 0:01:59]} 22. Qc5 {[%clk 0:01:05]}  Qf6 {[%clk 0:01:43]} 23. Qe5 {[%clk 0:01:03]}  Bxf3 {[%clk 0:01:30]} 24. Qxf6 {[%clk 0:00:55]}  gxf6 {[%clk 0:01:29]} 25. Rxf3 {[%clk 0:00:55]}  Rc8 {[%clk 0:01:28]} 26. Rd3 {[%clk 0:00:54]}  Rc2 {[%clk 0:01:25]} 27. Kh2 {[%clk 0:00:51]}  h4 {[%clk 0:01:24]} 28. f5 {[%clk 0:00:24]}  Kf8 {[%clk 0:01:23]} 29. Re3 {[%clk 0:00:20]}  Ke7 {[%clk 0:01:21]} 30. Re4 {[%clk 0:00:17]}  Rc3 {[%clk 0:01:20]} 31. fxe6 {[%clk 0:00:16]}  fxe6 {[%clk 0:01:20]} 32. Rxh4 {[%clk 0:00:17]}  Rxa3 {[%clk 0:01:19]} 33. Rg4 {[%clk 0:00:17]}  Rb3 {[%clk 0:01:16]} 34. h4 {[%clk 0:00:17]}  Rxb4 {[%clk 0:01:01]} 35. h5 {[%clk 0:00:17]}  Rc4 {[%clk 0:01:01]} 36. h6 {[%clk 0:00:16]}  Rc8 {[%clk 0:01:00]} 37. Rg7+ {[%clk 0:00:16]}  Kd6 {[%clk 0:01:00]} 38. Ra7 {[%clk 0:00:15]}  Rh8 {[%clk 0:00:56]} 39. h7 {[%clk 0:00:15]}  Kd5 {[%clk 0:00:47]} 40. Rd7+ {[%clk 0:00:12]}  Kc4 {[%clk 0:00:45]} 41. Kg3 {[%clk 0:00:12]}  b4 {[%clk 0:00:45]} 42. Kh4 {[%clk 0:00:10]}  b3 {[%clk 0:00:44]} 43. Kh5 {[%clk 0:00:10]}  b2 {[%clk 0:00:44]} 44. Rb7 {[%clk 0:00:11]}  Rxh7+ {[%clk 0:00:43]} 45. Kg6 {[%clk 0:00:11]}  Rxb7 {[%clk 0:00:42]} 0-1


[Site "https://www.chess.com"]

[Event "Titled Tuesday Blitz February 14 Late 2023"]
[White "Vargas, Mauricio"]
[Black "Marcolino, Daniel Mattos"]
[WhiteFideId "4404572"]
[BlackFideId "2106841"]
[WhiteElo "2035"]
[BlackElo "2006"]
[Result "0-1"]
[Round "07"]
[TimeControl "180+2"]
[Date "2023.02.14"]
[WhiteClock "0:00:03"]
[BlackClock "0:01:27"]

1. e4 {[%clk 0:00:45]}  c6 {[%clk 0:02:57]} 2. f4 {[%clk 0:00:44]}  d5 {[%clk 0:02:58]} 3. e5 {[%clk 0:00:45]}  c5 {[%clk 0:02:58]} 4. Nf3 {[%clk 0:00:46]}  Nc6 {[%clk 0:02:58]} 5. Bb5 {[%clk 0:00:46]}  Bg4 {[%clk 0:02:57]} 6. Bxc6+ {[%clk 0:00:47]}  bxc6 {[%clk 0:02:58]} 7. O-O {[%clk 0:00:47]}  e6 {[%clk 0:02:58]} 8. c3 {[%clk 0:00:47]}  Qb6 {[%clk 0:02:56]} 9. Kh1 {[%clk 0:00:46]}  c4 {[%clk 0:02:55]} 10. h3 {[%clk 0:00:45]}  Bxf3 {[%clk 0:02:53]} 11. Rxf3 {[%clk 0:00:45]}  Ne7 {[%clk 0:02:50]} 12. d3 {[%clk 0:00:44]}  cxd3 {[%clk 0:02:48]} 13. Rxd3 {[%clk 0:00:38]}  h5 {[%clk 0:02:48]} 14. Na3 {[%clk 0:00:33]}  Nf5 {[%clk 0:02:47]} 15. Nc2 {[%clk 0:00:31]}  h4 {[%clk 0:02:33]} 16. Nd4 {[%clk 0:00:21]}  Ng3+ {[%clk 0:02:28]} 17. Kh2 {[%clk 0:00:19]}  Ne4 {[%clk 0:02:07]} 18. b4 {[%clk 0:00:18]}  Nf2 {[%clk 0:02:06]} 19. Qf3 {[%clk 0:00:14]}  Nxd3 {[%clk 0:02:06]} 20. Qxd3 {[%clk 0:00:14]}  c5 {[%clk 0:02:03]} 21. bxc5 {[%clk 0:00:13]}  Bxc5 {[%clk 0:02:03]} 22. Be3 {[%clk 0:00:13]}  Rb8 {[%clk 0:01:57]} 23. Nb3 {[%clk 0:00:12]}  Bxe3 {[%clk 0:01:55]} 24. Rf1 {[%clk 0:00:08]}  Bc5 {[%clk 0:01:50]} 25. f5 {[%clk 0:00:07]}  exf5 {[%clk 0:01:44]} 26. Qxf5 {[%clk 0:00:07]}  O-O {[%clk 0:01:37]} 27. Rf4 {[%clk 0:00:03]}  Be7 {[%clk 0:01:27]} 0-1


[Site "https://www.chess.com"]

[Event "Titled Tuesday Blitz February 14 Late 2023"]
[White "Livaic, Leon"]
[Black "Andreikin, Dmitry"]
[WhiteFideId "14531534"]
[BlackFideId "4158814"]
[WhiteElo "2579"]
[BlackElo "2729"]
[Result "0-1"]
[Round "08"]
[TimeControl "180+2"]
[Date "2023.02.14"]
[WhiteClock "0:00:01"]
[BlackClock "0:00:09"]

1. d4 {[%clk 0:03:00]}  d5 {[%clk 0:02:59]} 2. c4 {[%clk 0:03:01]}  c6 {[%clk 0:03:00]} 3. cxd5 {[%clk 0:03:01]}  cxd5 {[%clk 0:02:59]} 4. Bf4 {[%clk 0:03:02]}  Nf6 {[%clk 0:02:59]} 5. e3 {[%clk 0:03:03]}  Nc6 {[%clk 0:02:59]} 6. Nc3 {[%clk 0:03:03]}  a6 {[%clk 0:02:54]} 7. Be2 {[%clk 0:03:04]}  Bf5 {[%clk 0:02:53]} 8. Nf3 {[%clk 0:03:04]}  e6 {[%clk 0:02:52]} 9. Qb3 {[%clk 0:03:04]}  Ra7 {[%clk 0:02:48]} 10. Ne5 {[%clk 0:03:04]}  Bd6 {[%clk 0:02:37]} 11. Nxc6 {[%clk 0:02:53]}  bxc6 {[%clk 0:02:38]} 12. Bxd6 {[%clk 0:02:53]}  Qxd6 {[%clk 0:02:38]} 13. Na4 {[%clk 0:02:37]}  O-O {[%clk 0:02:33]} 14. Nc5 {[%clk 0:02:29]}  Rb8 {[%clk 0:02:32]} 15. Qc3 {[%clk 0:02:28]}  Ne4 {[%clk 0:02:29]} 16. Nxe4 {[%clk 0:02:28]}  Bxe4 {[%clk 0:02:29]} 17. O-O {[%clk 0:02:26]}  a5 {[%clk 0:02:29]} 18. Rfc1 {[%clk 0:02:25]}  a4 {[%clk 0:02:19]} 19. Bd1 {[%clk 0:01:52]}  Qb4 {[%clk 0:01:29]} 20. Qxb4 {[%clk 0:01:48]}  Rxb4 {[%clk 0:01:28]} 21. Rxc6 {[%clk 0:01:48]}  h6 {[%clk 0:01:19]} 22. f3 {[%clk 0:01:28]}  Bf5 {[%clk 0:00:57]} 23. Bc2 {[%clk 0:00:39]}  Rxb2 {[%clk 0:00:54]} 24. Bxf5 {[%clk 0:00:39]}  exf5 {[%clk 0:00:55]} 25. h4 {[%clk 0:00:27]}  a3 {[%clk 0:00:51]} 26. Rc5 {[%clk 0:00:21]}  Re7 {[%clk 0:00:45]} 27. Rc3 {[%clk 0:00:21]}  Ra7 {[%clk 0:00:33]} 28. Rc5 {[%clk 0:00:16]}  f4 {[%clk 0:00:23]} 29. exf4 {[%clk 0:00:12]}  Re7 {[%clk 0:00:23]} 30. Kh2 {[%clk 0:00:12]}  Ree2 {[%clk 0:00:22]} 31. Rg1 {[%clk 0:00:13]}  Rxa2 {[%clk 0:00:22]} 32. Rxd5 {[%clk 0:00:13]}  Rad2 {[%clk 0:00:19]} 33. Ra5 {[%clk 0:00:12]}  a2 {[%clk 0:00:20]} 34. d5 {[%clk 0:00:09]}  h5 {[%clk 0:00:18]} 35. f5 {[%clk 0:00:09]}  Kf8 {[%clk 0:00:18]} 36. Kg3 {[%clk 0:00:08]}  Ke7 {[%clk 0:00:18]} 37. Kf4 {[%clk 0:00:08]}  Rd4+ {[%clk 0:00:10]} 38. Kg5 {[%clk 0:00:07]}  Re5 {[%clk 0:00:11]} 39. Rxa2 {[%clk 0:00:03]}  Rg4+ {[%clk 0:00:10]} 40. Kxh5 {[%clk 0:00:03]}  Rg3 {[%clk 0:00:11]} 41. Ra7+ {[%clk 0:00:02]}  Kf6 {[%clk 0:00:09]} 42. Ra6+ {[%clk 0:00:02]}  Kxf5 {[%clk 0:00:10]} 43. d6 {[%clk 0:00:01]}  Kf4# {[%clk 0:00:09]} 0-1


[Site "https://www.chess.com"]

[Event "Titled Tuesday Blitz February 14 Late 2023"]
[White "Mekhitarian, Krikor Sevag"]
[Black "Terry, Renato"]
[WhiteFideId "2107660"]
[BlackFideId "3803457"]
[WhiteElo "2537"]
[BlackElo "2520"]
[Result "0-1"]
[Round "08"]
[TimeControl "180+2"]
[Date "2023.02.14"]
[WhiteClock "0:00:05"]
[BlackClock "0:00:05"]

1. Nf3 {[%clk 0:03:00]}  d5 {[%clk 0:02:59]} 2. c4 {[%clk 0:03:00]}  d4 {[%clk 0:03:00]} 3. b4 {[%clk 0:03:00]}  g6 {[%clk 0:02:59]} 4. g3 {[%clk 0:02:58]}  Bg7 {[%clk 0:02:59]} 5. d3 {[%clk 0:02:58]}  e5 {[%clk 0:02:59]} 6. Bg2 {[%clk 0:02:58]}  Ne7 {[%clk 0:02:58]} 7. O-O {[%clk 0:02:59]}  O-O {[%clk 0:02:58]} 8. a4 {[%clk 0:02:59]}  Re8 {[%clk 0:02:39]} 9. Ra2 {[%clk 0:02:59]}  Nf5 {[%clk 0:02:39]} 10. a5 {[%clk 0:02:50]}  a6 {[%clk 0:02:29]} 11. Nbd2 {[%clk 0:02:51]}  Nd7 {[%clk 0:02:27]} 12. Ne4 {[%clk 0:02:49]}  h6 {[%clk 0:02:27]} 13. Qb3 {[%clk 0:02:41]}  Nf6 {[%clk 0:02:24]} 14. Nxf6+ {[%clk 0:02:36]}  Qxf6 {[%clk 0:02:23]} 15. Nd2 {[%clk 0:02:36]}  Nd6 {[%clk 0:02:17]} 16. Rc2 {[%clk 0:02:32]}  Qe7 {[%clk 0:02:07]} 17. Ba3 {[%clk 0:02:30]}  Qd8 {[%clk 0:01:48]} 18. Rfc1 {[%clk 0:02:27]}  Be6 {[%clk 0:01:41]} 19. Qb1 {[%clk 0:02:24]}  c6 {[%clk 0:01:33]} 20. Nb3 {[%clk 0:02:15]}  Bf5 {[%clk 0:01:23]} 21. Nc5 {[%clk 0:02:15]}  e4 {[%clk 0:01:19]} 22. Rf1 {[%clk 0:01:53]}  h5 {[%clk 0:01:18]} 23. Qd1 {[%clk 0:01:47]}  h4 {[%clk 0:01:10]} 24. Bb2 {[%clk 0:01:39]}  hxg3 {[%clk 0:01:04]} 25. fxg3 {[%clk 0:01:39]}  Qe7 {[%clk 0:00:51]} 26. Kh1 {[%clk 0:01:33]}  Rad8 {[%clk 0:00:51]} 27. Nb3 {[%clk 0:01:31]}  Bg4 {[%clk 0:00:33]} 28. Qd2 {[%clk 0:01:20]}  exd3 {[%clk 0:00:28]} 29. exd3 {[%clk 0:01:20]}  Nf5 {[%clk 0:00:28]} 30. Rf4 {[%clk 0:00:48]}  Bh6 {[%clk 0:00:27]} 31. Rc1 {[%clk 0:00:49]}  Qd6 {[%clk 0:00:11]} 32. Rcf1 {[%clk 0:00:42]}  Re2 {[%clk 0:00:10]} 33. Qc1 {[%clk 0:00:41]}  Bxf4 {[%clk 0:00:09]} 34. Rxf4 {[%clk 0:00:42]}  Ne3 {[%clk 0:00:06]} 35. Be4 {[%clk 0:00:22]}  Qxb4 {[%clk 0:00:05]} 36. Nxd4 {[%clk 0:00:05]}  Re1+ {[%clk 0:00:05]} 0-1


[Site "https://www.chess.com"]

[Event "Titled Tuesday Blitz February 14 Late 2023"]
[White "Yu, Yangyi"]
[Black "Sanal, Vahap"]
[WhiteFideId "8603820"]
[BlackFideId "6300545"]
[WhiteElo "2729"]
[BlackElo "2600"]
[Result "1-0"]
[Round "08"]
[TimeControl "180+2"]
[Date "2023.02.14"]
[WhiteClock "0:00:59"]
[BlackClock "0:00:06"]

1. Nf3 {[%clk 0:03:00]}  d5 {[%clk 0:02:59]} 2. g3 {[%clk 0:03:01]}  g6 {[%clk 0:02:58]} 3. Bg2 {[%clk 0:03:00]}  Bg7 {[%clk 0:02:59]} 4. d4 {[%clk 0:03:01]}  Nf6 {[%clk 0:02:59]} 5. c4 {[%clk 0:03:01]}  c6 {[%clk 0:02:59]} 6. Qa4 {[%clk 0:03:01]}  O-O {[%clk 0:02:59]} 7. O-O {[%clk 0:03:02]}  Nbd7 {[%clk 0:02:53]} 8. cxd5 {[%clk 0:03:01]}  cxd5 {[%clk 0:02:51]} 9. Bf4 {[%clk 0:03:00]}  Nb6 {[%clk 0:02:50]} 10. Qb3 {[%clk 0:03:00]}  Nc4 {[%clk 0:02:48]} 11. Rc1 {[%clk 0:02:56]}  Ne4 {[%clk 0:02:35]} 12. Nc3 {[%clk 0:02:48]}  Nxc3 {[%clk 0:02:35]} 13. Rxc3 {[%clk 0:02:43]}  a5 {[%clk 0:02:22]} 14. a4 {[%clk 0:02:39]}  Ra6 {[%clk 0:02:22]} 15. Qa2 {[%clk 0:02:29]}  Bf5 {[%clk 0:02:15]} 16. Rac1 {[%clk 0:02:15]}  Be4 {[%clk 0:01:56]} 17. b3 {[%clk 0:02:13]}  Nd6 {[%clk 0:01:56]} 18. Be5 {[%clk 0:02:11]}  Rb6 {[%clk 0:01:50]} 19. Bxg7 {[%clk 0:02:01]}  Kxg7 {[%clk 0:01:50]} 20. Ne5 {[%clk 0:02:01]}  Rb4 {[%clk 0:01:41]} 21. e3 {[%clk 0:01:59]}  f6 {[%clk 0:01:12]} 22. Nd3 {[%clk 0:01:57]}  Bxd3 {[%clk 0:01:12]} 23. Rxd3 {[%clk 0:01:58]}  e6 {[%clk 0:01:07]} 24. Rdc3 {[%clk 0:01:56]}  Rf7 {[%clk 0:01:08]} 25. Qc2 {[%clk 0:01:55]}  Qb6 {[%clk 0:01:04]} 26. h4 {[%clk 0:01:54]}  h5 {[%clk 0:01:03]} 27. Bf3 {[%clk 0:01:54]}  f5 {[%clk 0:01:02]} 28. Qd1 {[%clk 0:01:47]}  Ne4 {[%clk 0:00:57]} 29. Bxe4 {[%clk 0:01:41]}  fxe4 {[%clk 0:00:58]} 30. Qc2 {[%clk 0:01:35]}  Qd8 {[%clk 0:00:47]} 31. Rc8 {[%clk 0:01:27]}  Qf6 {[%clk 0:00:47]} 32. Rc7 {[%clk 0:01:17]}  Rxc7 {[%clk 0:00:36]} 33. Qxc7+ {[%clk 0:01:17]}  Kh6 {[%clk 0:00:37]} 34. Rc3 {[%clk 0:01:04]}  b6 {[%clk 0:00:37]} 35. Qd7 {[%clk 0:01:01]}  Qg7 {[%clk 0:00:06]} 36. Qd8 {[%clk 0:00:59]} 1-0


[Site "https://www.chess.com"]

[Event "Titled Tuesday Blitz February 14 Late 2023"]
[White "Melkumyan, Hrant"]
[Black "Mamedov, Rauf"]
[WhiteFideId "13302485"]
[BlackFideId "13401653"]
[WhiteElo "2645"]
[BlackElo "2646"]
[Result "1/2-1/2"]
[Round "08"]
[TimeControl "180+2"]
[Date "2023.02.14"]
[WhiteClock "0:00:16"]
[BlackClock "0:00:13"]

1. d4 {[%clk 0:03:00]}  d6 {[%clk 0:03:00]} 2. Nf3 {[%clk 0:02:58]}  Nf6 {[%clk 0:02:59]} 3. Nc3 {[%clk 0:02:54]}  g6 {[%clk 0:02:55]} 4. e4 {[%clk 0:02:53]}  Bg7 {[%clk 0:02:55]} 5. Be2 {[%clk 0:02:54]}  O-O {[%clk 0:02:55]} 6. O-O {[%clk 0:02:54]}  Nc6 {[%clk 0:02:55]} 7. d5 {[%clk 0:02:53]}  Nb8 {[%clk 0:02:55]} 8. Re1 {[%clk 0:02:54]}  e5 {[%clk 0:02:55]} 9. dxe6 {[%clk 0:02:53]}  Bxe6 {[%clk 0:02:55]} 10. h3 {[%clk 0:02:49]}  Nc6 {[%clk 0:02:55]} 11. Bg5 {[%clk 0:02:48]}  h6 {[%clk 0:02:55]} 12. Bf4 {[%clk 0:02:48]}  Re8 {[%clk 0:02:44]} 13. Bb5 {[%clk 0:02:48]}  Nd7 {[%clk 0:02:40]} 14. Qd2 {[%clk 0:02:45]}  Kh7 {[%clk 0:02:31]} 15. Rad1 {[%clk 0:02:44]}  a6 {[%clk 0:02:06]} 16. Ba4 {[%clk 0:02:41]}  Nb6 {[%clk 0:01:49]} 17. Bb3 {[%clk 0:02:26]}  a5 {[%clk 0:01:46]} 18. Nd5 {[%clk 0:02:13]}  Nd7 {[%clk 0:01:27]} 19. c3 {[%clk 0:02:01]}  a4 {[%clk 0:01:25]} 20. Bc2 {[%clk 0:01:58]}  Nde5 {[%clk 0:01:25]} 21. Nd4 {[%clk 0:01:48]}  Nxd4 {[%clk 0:01:16]} 22. cxd4 {[%clk 0:01:46]}  Nc4 {[%clk 0:01:17]} 23. Qc3 {[%clk 0:01:39]}  Bxd5 {[%clk 0:01:17]} 24. exd5 {[%clk 0:01:39]}  Rxe1+ {[%clk 0:01:03]} 25. Rxe1 {[%clk 0:01:39]}  b5 {[%clk 0:01:03]} 26. b3 {[%clk 0:01:29]}  Qf6 {[%clk 0:01:03]} 27. g3 {[%clk 0:01:19]}  axb3 {[%clk 0:01:00]} 28. Bxb3 {[%clk 0:01:09]}  Qxd4 {[%clk 0:00:46]} 29. Qxd4 {[%clk 0:01:08]}  Bxd4 {[%clk 0:00:47]} 30. Re7 {[%clk 0:01:07]}  Kg7 {[%clk 0:00:47]} 31. Rxc7 {[%clk 0:01:03]}  Bc5 {[%clk 0:00:46]} 32. Rb7 {[%clk 0:00:56]}  Na5 {[%clk 0:00:38]} 33. Rxb5 {[%clk 0:00:55]}  Nxb3 {[%clk 0:00:39]} 34. axb3 {[%clk 0:00:40]}  Ra2 {[%clk 0:00:39]} 35. b4 {[%clk 0:00:21]}  Bxf2+ {[%clk 0:00:19]} 36. Kf1 {[%clk 0:00:21]}  Kf6 {[%clk 0:00:15]} 37. Bxd6 {[%clk 0:00:21]}  Kf5 {[%clk 0:00:15]} 38. Be7 {[%clk 0:00:15]}  Ke4 {[%clk 0:00:15]} 39. Ra5 {[%clk 0:00:14]}  Rb2 {[%clk 0:00:15]} 40. d6 {[%clk 0:00:14]}  Kf3 {[%clk 0:00:13]} 41. Ra3+ {[%clk 0:00:14]}  Be3 {[%clk 0:00:14]} 42. Rxe3+ {[%clk 0:00:15]}  Kxe3 {[%clk 0:00:15]} 43. d7 {[%clk 0:00:16]}  Rb1+ {[%clk 0:00:11]} 44. Kg2 {[%clk 0:00:16]}  Rb2+ {[%clk 0:00:12]} 45. Kf1 {[%clk 0:00:16]}  Rb1+ {[%clk 0:00:12]} 46. Kg2 {[%clk 0:00:16]}  Rb2+ {[%clk 0:00:13]} 47. Kf1 {[%clk 0:00:16]} 1/2-1/2


[Site "https://www.chess.com"]

[Event "Titled Tuesday Blitz February 14 Late 2023"]
[White "Deac, Bogdan-Daniel"]
[Black "Pichot, Alan"]
[WhiteFideId "1226380"]
[BlackFideId "110973"]
[WhiteElo "2700"]
[BlackElo "2638"]
[Result "1-0"]
[Round "08"]
[TimeControl "180+2"]
[Date "2023.02.14"]
[WhiteClock "0:00:04"]
[BlackClock "0:00:02"]

1. c4 {[%clk 0:03:00]}  e5 {[%clk 0:02:58]} 2. d3 {[%clk 0:03:00]}  Nf6 {[%clk 0:02:56]} 3. Nf3 {[%clk 0:03:00]}  Nc6 {[%clk 0:02:56]} 4. a3 {[%clk 0:03:01]}  g6 {[%clk 0:02:55]} 5. b4 {[%clk 0:02:59]}  Bg7 {[%clk 0:02:54]} 6. Bb2 {[%clk 0:02:59]}  d6 {[%clk 0:02:54]} 7. g3 {[%clk 0:03:00]}  O-O {[%clk 0:02:52]} 8. Bg2 {[%clk 0:02:59]}  h6 {[%clk 0:02:49]} 9. O-O {[%clk 0:02:58]}  Be6 {[%clk 0:02:49]} 10. Nbd2 {[%clk 0:02:57]}  Qd7 {[%clk 0:02:49]} 11. e3 {[%clk 0:02:47]}  Bh3 {[%clk 0:02:49]} 12. Rc1 {[%clk 0:02:45]}  a5 {[%clk 0:02:44]} 13. b5 {[%clk 0:02:42]}  Ne7 {[%clk 0:02:44]} 14. a4 {[%clk 0:02:42]}  b6 {[%clk 0:02:43]} 15. e4 {[%clk 0:02:37]}  Rfe8 {[%clk 0:02:34]} 16. Re1 {[%clk 0:02:29]}  Bxg2 {[%clk 0:02:32]} 17. Kxg2 {[%clk 0:02:29]}  Nh7 {[%clk 0:02:31]} 18. d4 {[%clk 0:02:26]}  exd4 {[%clk 0:02:16]} 19. Bxd4 {[%clk 0:02:20]}  Bxd4 {[%clk 0:02:16]} 20. Nxd4 {[%clk 0:02:21]}  Ng5 {[%clk 0:02:17]} 21. f4 {[%clk 0:02:06]}  Qh3+ {[%clk 0:02:13]} 22. Kg1 {[%clk 0:02:06]}  Ne6 {[%clk 0:02:14]} 23. Nxe6 {[%clk 0:02:05]}  fxe6 {[%clk 0:02:09]} 24. Nf3 {[%clk 0:01:59]}  g5 {[%clk 0:02:10]} 25. fxg5 {[%clk 0:01:56]}  Rf8 {[%clk 0:02:10]} 26. Rc3 {[%clk 0:01:37]}  Rf7 {[%clk 0:01:59]} 27. gxh6 {[%clk 0:01:25]}  Qxh6 {[%clk 0:01:58]} 28. e5 {[%clk 0:01:25]}  d5 {[%clk 0:01:51]} 29. Qd2 {[%clk 0:01:24]}  Qg7 {[%clk 0:01:30]} 30. Ng5 {[%clk 0:01:16]}  Qh6 {[%clk 0:01:05]} 31. cxd5 {[%clk 0:00:54]}  Nxd5 {[%clk 0:01:01]} 32. Rc6 {[%clk 0:00:50]}  Re8 {[%clk 0:00:32]} 33. h4 {[%clk 0:00:22]}  Rd7 {[%clk 0:00:21]} 34. Rf1 {[%clk 0:00:18]}  Qg6 {[%clk 0:00:17]} 35. Qe2 {[%clk 0:00:13]}  Nb4 {[%clk 0:00:12]} 36. Rc4 {[%clk 0:00:10]}  Nd5 {[%clk 0:00:12]} 37. Rg4 {[%clk 0:00:09]}  Rg7 {[%clk 0:00:06]} 38. Kh2 {[%clk 0:00:07]}  Qh5 {[%clk 0:00:06]} 39. Qe4 {[%clk 0:00:07]}  Ree7 {[%clk 0:00:03]} 40. Rf2 {[%clk 0:00:06]}  Re8 {[%clk 0:00:03]} 41. Qd4 {[%clk 0:00:05]}  Qh6 {[%clk 0:00:02]} 42. Kg1 {[%clk 0:00:05]}  Qh5 {[%clk 0:00:02]} 43. Qe4 {[%clk 0:00:05]}  Ree7 {[%clk 0:00:02]} 44. Qf3 {[%clk 0:00:04]}  Re8 {[%clk 0:00:01]} 45. Re4 {[%clk 0:00:04]}  Qg6 {[%clk 0:00:01]} 46. Rc4 {[%clk 0:00:04]}  Qb1+ {[%clk 0:00:01]} 47. Rf1 {[%clk 0:00:04]}  Qg6 {[%clk 0:00:02]} 48. Rc6 {[%clk 0:00:04]}  Rge7 {[%clk 0:00:01]} 49. Rxe6 {[%clk 0:00:04]}  Rxe6 {[%clk 0:00:01]} 50. Qxd5 {[%clk 0:00:04]}  Kg7 {[%clk 0:00:01]} 51. Nxe6+ {[%clk 0:00:03]}  Rxe6 {[%clk 0:00:01]} 52. Kg2 {[%clk 0:00:04]}  Qg4 {[%clk 0:00:02]} 53. Qd7+ {[%clk 0:00:03]}  Kh6 {[%clk 0:00:02]} 54. Rf6+ {[%clk 0:00:04]}  Rxf6 {[%clk 0:00:02]} 55. Qxg4 {[%clk 0:00:04]} 1-0


[Site "https://www.chess.com"]

[Event "Titled Tuesday Blitz February 14 Late 2023"]
[White "Sarana, Alexey"]
[Black "Madaminov, Mukhiddin"]
[WhiteFideId "24133795"]
[BlackFideId "14210703"]
[WhiteElo "2685"]
[BlackElo "2422"]
[Result "1-0"]
[Round "08"]
[TimeControl "180+2"]
[Date "2023.02.14"]
[WhiteClock "0:01:11"]
[BlackClock "0:01:26"]

1. c4 {[%clk 0:02:59]}  g6 {[%clk 0:03:00]} 2. d4 {[%clk 0:02:58]}  Nf6 {[%clk 0:03:00]} 3. Nc3 {[%clk 0:02:58]}  d5 {[%clk 0:03:00]} 4. Bf4 {[%clk 0:02:57]}  Bg7 {[%clk 0:02:59]} 5. e3 {[%clk 0:02:58]}  c5 {[%clk 0:02:59]} 6. dxc5 {[%clk 0:02:58]}  Qa5 {[%clk 0:02:59]} 7. Rc1 {[%clk 0:02:53]}  dxc4 {[%clk 0:02:55]} 8. Bxc4 {[%clk 0:02:52]}  O-O {[%clk 0:02:55]} 9. Nf3 {[%clk 0:02:51]}  Qxc5 {[%clk 0:02:55]} 10. Qb3 {[%clk 0:02:51]}  Qa5 {[%clk 0:02:51]} 11. O-O {[%clk 0:02:50]}  Nbd7 {[%clk 0:02:35]} 12. Bxf7+ {[%clk 0:02:28]}  Kh8 {[%clk 0:02:21]} 13. Bc4 {[%clk 0:02:21]}  a6 {[%clk 0:02:10]} 14. Ng5 {[%clk 0:02:13]}  Nc5 {[%clk 0:02:10]} 15. Qd1 {[%clk 0:02:09]}  Qb4 {[%clk 0:01:59]} 16. Nf7+ {[%clk 0:02:02]}  Kg8 {[%clk 0:01:58]} 17. Ne5+ {[%clk 0:02:00]}  Be6 {[%clk 0:01:55]} 18. a3 {[%clk 0:01:52]}  Qb6 {[%clk 0:01:31]} 19. Nd5 {[%clk 0:01:11]}  Nxd5 {[%clk 0:01:26]} 20. Bxd5 {[%clk 0:01:11]}  Rad8 {[%clk 0:01:26]} 21. Rxc5 {[%clk 0:01:11]} 1-0


[Site "https://www.chess.com"]